bitfinex-derivatives/quotes_ETHF0:USTF0_20250817
["timestamp","ask_amount","ask_price","bid_price","bid_amount"]
[1755397568903,1.4474,4415.6,4415.5,21.4733]
[1755397569605,1.4474,4415.6,4415.5,22.118]
[1755397570305,1.1885,4415.6,4415.5,22.118]
[1755397570607,1.1885,4415.6,4415.5,1.493]
[1755397570801,1.1885,4415.6,4415.5,22.11]
[1755397571003,1.1885,4415.6,4415.5,22.107]
[1755397571202,1.1885,4415.6,4415.5,22.106]
[1755397571706,0.2519,4415.6,4415.5,21.201]
[1755397571906,0.86,4415.6,4415.5,21.201]
[1755397572101,3.2078,4415.8,4415.5,21.201]
[1755397572303,1.471165,4415.7,4415.6,1.493]
[1755397572498,1.799665,4415.7,4415.6,1.493]
[1755397572704,2.058565,4415.7,4415.6,1.493]
[1755397572896,2.058565,4415.7,4415.6,22.106]
[1755397573102,2.058565,4415.7,4415.6,21.4613]
[1755397573505,2.058565,4415.7,4414.6,3.2078]
[1755397573701,1.4474,4415.6,4415.5,0.4223]
[1755397573906,1.4474,4415.6,4415.5,22.104]
[1755397574209,2.05869063,4415.6,4415.5,22.104]
[1755397576407,2.05869063,4415.6,4415.5,1.2382]
[1755397576602,1.19169063,4415.6,4415.5,20.605]
[1755397577100,2.05869063,4415.6,4415.5,20.605]
[1755397577306,1.19169063,4415.6,4415.3,0.2603]
[1755397577507,1.4761,4415.4,4415.3,20.8713]
[1755397577806,2.08739063,4415.4,4415.3,0.2603]
[1755397578009,0.5915,4414.8,4414.7,0.8422]
[1755397578313,0.4283,4414.8,4414.7,22.0842]
[1755397578615,1.0575,4414.8,4414.7,22.0842]
[1755397579515,1.0575,4414.8,4414.7,1.4742]
[1755397579811,1.0575,4414.8,4414.7,22.0812]
[1755397580008,1.0575,4414.8,4414.7,1.4742]
[1755397580215,1.4761,4414.8,4414.7,22.0802]
[1755397580606,1.2207,4414.8,4414.7,22.0802]
[1755397582811,1.2207,4414.8,4414.7,1.4742]
[1755397583011,1.4761,4414.8,4414.7,22.0762]
[1755397583918,1.20095315,4414.8,4414.7,21.1862]
[1755397584119,1.20095315,4414.8,4414.7,22.0752]
[1755397584417,2.08555315,4414.8,4414.7,22.0752]
[1755397584818,1.83015315,4414.8,4414.7,20.601]
[1755397585012,2.08555315,4414.8,4414.7,20.8446]
[1755397585221,2.08555315,4414.8,4414.7,21.6868]
[1755397585409,1.83015315,4414.8,4414.7,20.9403]
[1755397585615,2.08555315,4414.8,4414.7,22.0752]
[1755397585917,1.4761,4414.8,4414.7,22.0752]
[1755397586519,1.4761,4414.8,4414.7,20.8446]
[1755397586721,1.4761,4414.8,4414.7,22.0752]
[1755397589820,1.2207,4414.8,4414.7,22.0752]
[1755397591024,0.4283,4414.8,4414.7,22.0752]
[1755397591219,1.0575,4414.8,4414.7,22.0752]
[1755397591527,4.6839,4415.8,4415.7,1.4742]
[1755397591717,5.2936425,4415.8,4415.7,22.0652]
[1755397596330,5.2936425,4415.8,4415.7,1.4742]
[1755397596632,5.2936425,4415.8,4415.7,22.0652]
[1755397597136,5.2936425,4415.8,4415.7,1.4742]
[1755397597735,5.2936425,4415.8,4415.7,0.8288]
[1755397597930,5.2936425,4415.8,4415.7,1.4742]
[1755397598438,4.4090425,4415.8,4415.7,1.4742]
[1755397598636,5.0382425,4415.8,4415.7,1.4742]
[1755397599234,5.2936425,4415.8,4415.7,1.4742]
[1755397599739,4.0801425,4415.8,4415.7,1.4742]
[1755397599932,4.7123425,4415.8,4415.7,1.4742]
[1755397600836,5.0382425,4415.8,4415.7,1.4742]
[1755397603739,5.2936425,4415.8,4415.7,1.4742]
[1755397605139,5.0382425,4415.8,4415.7,1.4742]
[1755397607438,5.03817304,4415.8,4415.7,1.4742]
[1755397607639,5.01627304,4415.8,4415.7,1.4742]
[1755397607941,5.26987304,4415.8,4415.7,1.4742]
[1755397609245,3.81747304,4415.8,4415.7,1.4742]
[1755397609436,5.03567304,4415.8,4415.7,1.4742]
[1755397610841,5.28927304,4415.8,4415.7,1.4742]
[1755397616449,5.28927304,4415.8,4415.7,21.4168]
[1755397616650,5.28927304,4415.8,4415.7,22.0415]
[1755397616949,5.03567304,4415.8,4415.7,22.0415]
[1755397617447,5.28927304,4415.8,4415.7,1.4535]
[1755397617649,2.08147304,4415.8,4415.7,22.0415]
[1755397620753,2.08147304,4415.8,4415.7,1.4535]
[1755397620946,2.08147304,4415.8,4415.7,22.0415]
[1755397623848,1.00317304,4415.8,4415.7,22.0415]
[1755397624049,0.60967304,4415.8,4415.7,22.0415]
[1755397624953,1.00317304,4415.8,4415.7,22.0415]
[1755397625155,1.24387304,4415.8,4415.7,22.0415]
[1755397625554,2.08147304,4415.8,4415.7,1.4535]
[1755397625856,2.08147304,4415.8,4415.7,22.0405]
[1755397627851,2.08147304,4415.8,4415.7,0.4105]
[1755397628059,5.28927304,4415.8,4415.7,20.9975]
[1755397628253,5.28927304,4415.8,4415.7,21.261]
[1755397628453,5.28927304,4415.8,4415.7,22.0309]
[1755397628960,5.28927304,4415.8,4415.7,1.4439]
[1755397629258,5.48916706,4415.8,4415.7,22.0299]
[1755397630257,5.23556706,4415.8,4415.7,22.0299]
[1755397631859,5.48916706,4415.8,4415.7,22.0299]
[1755397632059,5.28927304,4415.8,4415.7,22.0299]
[1755397632260,5.48916866,4415.8,4415.7,22.0299]
[1755397632568,5.23556866,4415.8,4415.7,22.0299]
[1755397636168,4.01736866,4415.8,4415.7,22.0299]
[1755397637269,4.66026866,4415.8,4415.7,22.0299]
[1755397638166,4.90326866,4415.8,4415.7,22.0299]
[1755397638764,5.24926866,4415.8,4415.7,22.0299]
[1755397641566,5.51526866,4415.8,4415.7,22.0299]
[1755397642366,5.51526866,4415.8,4415.7,21.4052]
[1755397643867,5.31537304,4415.8,4415.7,21.4052]
[1755397644066,5.52082628,4415.8,4415.7,21.4052]
[1755397645071,5.52082628,4415.8,4415.7,21.6667]
[1755397645773,5.52082628,4415.8,4415.7,22.0541]
[1755397647765,0.3343,4415.2,4415.1,0.6031]
[1755397647962,2.28967808,4415.2,4415.1,22.0831]
[1755397649171,2.28967808,4415.2,4415.1,22.0821]
[1755397649872,2.08422484,4415.2,4415.1,22.0821]
[1755397650077,2.28966706,4415.2,4415.1,22.0821]
[1755397650372,1.68084221,4415.2,4415.1,22.0821]
[1755397650870,1.68084221,4415.2,4415.1,1.5001]
[1755397651470,1.68084221,4415.2,4415.1,22.0821]
[1755397651968,1.68084221,4415.2,4415.1,1.5001]
[1755397652168,1.68084221,4415.2,4415.1,22.0821]
[1755397654375,0.20544221,4415.2,4415.1,22.0821]
[1755397655870,0.83114221,4415.2,4415.1,22.0811]
[1755397656071,1.41484221,4415.2,4415.1,22.0811]
[1755397656674,0.44844221,4415.2,4415.1,22.0811]
[1755397656875,0.20544221,4415.2,4415.1,22.0811]
[1755397658972,0.20536136,4415.2,4415.1,21.62571]
[1755397659578,0.20536136,4415.2,4415.1,22.0811]
[1755397662078,0.58806136,4415.2,4415.1,22.0811]
[1755397662575,0.20536136,4415.2,4415.1,22.0811]
[1755397664681,0.20536136,4415.2,4415.1,22.0791]
[1755397664882,0.5871806,4415.2,4415.1,22.0791]
[1755397665781,0.2044806,4415.2,4415.1,22.0791]
[1755397670785,0.20447507,4415.2,4415.1,22.0791]
[1755397671388,1.42477507,4415.2,4415.1,22.0791]
[1755397672487,1.42477507,4415.2,4415.1,1.5001]
[1755397672684,1.17967507,4415.2,4415.1,22.0771]
[1755397672886,0.62107507,4415.2,4415.1,22.0771]
[1755397673789,0.4166,4415.2,4415.1,22.0771]
[1755397673989,0.62106555,4415.2,4415.1,22.0771]
[1755397674890,1.26056555,4415.2,4415.1,22.0771]
[1755397678796,0.20446555,4415.2,4415.1,22.0771]
[1755397679997,0.6395,4415.5,4415.1,22.0771]
[1755397680198,1.2203,4415.3,4415.2,1.4623]
[1755397680397,1.68192165,4415.3,4415.2,22.0373]
[1755397681293,1.42472165,4415.3,4414.7,3.2078]
[1755397681493,1.4775,4414.8,4414.7,4.2468]
[1755397681694,1.68195727,4414.8,4414.7,24.8218]
[1755397681897,1.68195727,4414.8,4414.7,25.2451]
[1755397682406,1.68195727,4414.8,4414.7,4.6701]
[1755397682890,1.68195727,4414.8,4414.7,24.617]
[1755397683607,1.68195727,4414.8,4414.7,4.042]
[1755397683809,1.68195727,4414.8,4414.7,24.616]
[1755397684106,1.68195727,4414.8,4414.7,4.6701]
[1755397684302,1.68195727,4414.8,4414.7,25.2441]
[1755397684803,1.68195727,4414.8,4414.7,4.6701]
[1755397685109,1.68195727,4414.8,4414.7,25.2441]
[1755397685507,0.20445727,4414.8,4414.7,25.2441]
[1755397688110,0.6395,4415.3,4414.7,25.2441]
[1755397688111,1.2203,4415.3,4415.2,0.589]
[1755397688408,1.42481974,4415.3,4415.2,22.0363]
[1755397691312,1.68201974,4415.3,4415.2,22.0363]
[1755397692303,1.42481974,4415.3,4415.2,22.0363]
[1755397692510,0.20451974,4415.3,4415.2,25.69681]
[1755397695007,0.2451,4415.6,4415.5,0.1657]
[1755397695208,0.84325387,4415.6,4415.5,22.0343]
[1755397695408,0.20375387,4415.6,4415.5,22.0343]
[1755397695912,0.84325387,4415.6,4415.5,22.0343]
[1755397696710,1.4775,4416.7,4416.6,0.3366]
[1755397696912,1.4775,4416.7,4416.6,21.4187]
[1755397696913,2.28997897,4416.7,4416.6,21.4187]
[1755397697113,1.68120996,4416.7,4416.6,22.0333]
[1755397699810,1.68089821,4416.7,4416.6,22.0333]
[1755397700211,1.68084792,4416.7,4416.6,22.0333]
[1755397702816,1.68084792,4416.7,4415.9,3.2078]
[1755397702817,1.42352632,4416.7,4416.0,0.45262]
[1755397703024,1.4737,4416.0,4415.9,4.6582]
[1755397703317,1.4737,4416.0,4415.9,25.2252]
[1755397703721,1.4737,4416.0,4415.9,23.7748]
[1755397704222,0.5987,4415.4,4415.3,3.4577]
[1755397704423,1.4737,4415.4,4415.3,24.1885]
[1755397704619,1.4737,4415.4,4415.3,3.2078]
[1755397704818,1.4737,4415.4,4415.3,23.7738]
[1755397705218,1.4737,4415.4,4415.3,24.43]
[1755397705523,1.4737,4415.4,4415.3,24.5948]
[1755397705723,1.4737,4415.4,4415.3,25.2242]
[1755397705923,1.4737,4415.4,4415.3,24.5992]
[1755397706521,1.4737,4415.4,4415.3,24.3493]
[1755397707024,1.67696181,4415.4,4415.3,24.3493]
[1755397707224,1.67696181,4415.4,4415.3,23.9386]
[1755397707423,1.67696181,4415.4,4415.3,20.7308]
[1755397707623,1.67696181,4415.4,4415.0,0.8749]
[1755397707926,1.4737,4415.2,4415.1,20.8159]
[1755397708722,1.4737,4415.2,4415.1,21.2239]
[1755397708923,1.4737,4415.2,4415.1,21.6057]
[1755397709419,1.4737,4415.2,4415.1,0.4147]
[1755397709626,1.67696082,4415.2,4415.1,20.9807]
[1755397710326,1.67696082,4415.2,4415.1,21.387]
[1755397711025,1.4737,4414.9,4414.8,3.4577]
[1755397711328,1.67696082,4414.9,4414.8,20.566]
[1755397711731,0.5987,4414.6,4414.5,0.2499]
[1755397711920,1.4737,4414.6,4414.5,20.8159]
[1755397712327,1.4737,4414.6,4414.5,0.2499]
[1755397712631,1.4737,4414.5,4414.4,0.2499]
[1755397712830,1.67691048,4414.5,4414.4,20.8159]
[1755397715134,1.4737,4414.5,4414.4,20.566]
[1755397715732,0.5987,4414.3,4414.2,3.2078]
[1755397716025,1.4737,4414.3,4414.2,20.568]
[1755397716228,3.2078,4414.8,4414.2,22.0184]
[1755397716428,1.67679386,4414.7,4414.6,0.5755]
[1755397716632,1.67679386,4414.7,4414.6,22.0184]
[1755397717126,1.4737,4414.7,4414.6,22.0184]
[1755397717330,1.67674966,4414.7,4414.6,22.0184]
[1755397718135,1.4737,4414.7,4414.6,22.0184]
[1755397718533,3.2078,4414.8,4414.6,22.0184]
[1755397718735,0.875,4415.4,4414.7,0.8749]
[1755397718930,1.4737,4414.9,4414.8,1.4504]
[1755397719135,1.67670461,4414.9,4414.8,1.4504]
[1755397720138,1.4737,4414.9,4414.8,1.4504]
[1755397721133,0.6161,4414.8,4414.6,20.568]
[1755397721438,1.4737,4414.7,4414.6,1.0397]
[1755397721627,1.4737,4414.7,4414.6,21.6087]
[1755397722539,1.4737,4414.7,4414.6,0.6579]
[1755397722741,1.4737,4414.7,4414.6,21.2269]
[1755397723635,1.4737,4414.7,4414.6,20.9837]
[1755397724843,1.4737,4414.7,4414.6,21.6087]
[1755397725139,1.4737,4414.7,4414.6,22.0194]
[1755397726031,3.5793,4415.0,4414.7,0.2499]
[1755397726237,4.4226,4415.0,4414.9,0.5755]
[1755397726531,4.4226,4415.0,4414.9,1.4504]
[1755397726737,4.4226,4415.0,4414.9,22.0194]
[1755397726938,3.2078,4415.0,4414.9,22.0194]
[1755397727243,3.8065,4415.5,4415.4,1.4781]
[1755397727436,3.8065,4415.5,4415.4,22.0471]
[1755397727635,4.2046,4415.5,4415.4,22.0471]
[1755397728338,4.4469,4415.5,4415.4,22.0471]
[1755397728538,4.7102,4415.5,4415.4,22.0471]
[1755397729243,4.91308991,4415.5,4415.4,22.0471]
[1755397739251,4.64978991,4415.5,4415.4,22.0471]
[1755397740363,4.91308991,4415.5,4415.4,22.0471]
[1755397741062,4.7102,4415.5,4415.4,22.0471]
[1755397741361,4.91376516,4415.5,4415.4,22.0471]
[1755397741963,4.91376412,4415.5,4415.4,22.0471]
[1755397743861,4.91376412,4415.5,4415.4,21.4075]
[1755397744069,4.91376412,4415.5,4415.4,0.8385]
[1755397744364,4.91376412,4415.5,4415.4,21.4035]
[1755397744760,4.27336412,4415.5,4414.8,0.9026]
[1755397744965,1.2454,4415.0,4414.9,22.0427]
[1755397745264,1.5087,4415.0,4414.9,1.4777]
[1755397745563,1.5087,4415.0,4414.9,22.0427]
[1755397745866,1.5087,4415.0,4414.9,1.4777]
[1755397746064,1.5087,4415.0,4414.9,22.0427]
[1755397747167,1.71229289,4415.0,4414.9,22.0427]
[1755397747464,1.44899289,4415.0,4414.9,22.0427]
[1755397748663,1.44899289,4415.0,4414.9,22.0417]
[1755397752666,1.44910179,4415.0,4414.9,22.0417]
[1755397752866,0.20370179,4415.0,4414.9,22.0417]
[1755397753360,0.3981,4415.3,4414.9,22.0417]
[1755397753666,0.9009,4415.1,4415.0,1.4777]
[1755397753866,1.10463536,4415.1,4415.0,1.4777]
[1755397754261,0.46423536,4415.1,4415.0,1.4777]
[1755397754562,0.20373536,4415.1,4415.0,1.4777]
[1755397759465,0.3892,4415.8,4415.0,0.3822]
[1755397759663,0.5893,4415.8,4415.7,1.0937]
[1755397759969,1.43076319,4415.8,4415.7,21.6547]
[1755397760168,1.43076319,4415.8,4415.7,22.0443]
[1755397761068,1.67246319,4415.8,4415.7,22.0443]
[1755397761263,1.4686,4415.8,4415.7,22.0443]
[1755397761463,1.43063041,4415.8,4415.7,22.0443]
[1755397765071,1.2269,4415.8,4415.7,22.0443]
[1755397768375,1.4686,4415.8,4415.7,22.0443]
[1755397768675,1.2269,4415.8,4415.7,22.0443]
[1755397770575,1.4686,4415.8,4415.7,22.0443]
[1755397772067,1.4686,4415.8,4415.7,20.561]
[1755397772379,1.4686,4415.8,4415.7,22.0443]
[1755397772679,1.2269,4415.8,4415.7,21.6547]
[1755397772976,1.4686,4415.8,4415.7,22.0443]
[1755397774182,1.4686,4415.8,4415.7,1.4833]
[1755397774675,1.4686,4415.6,4415.5,0.1732]
[1755397774880,1.4686,4415.6,4415.5,20.9824]
[1755397775080,1.4686,4415.6,4415.5,21.6192]
[1755397775281,1.4686,4415.6,4415.5,22.0383]
[1755397777483,1.4686,4415.6,4415.5,20.555]
[1755397777779,1.4686,4415.5,4415.4,0.2542]
[1755397777981,1.4686,4415.5,4415.4,20.8082]
[1755397778480,1.4686,4415.5,4415.4,21.2286]
[1755397778780,1.4686,4415.5,4415.4,21.6182]
[1755397779883,1.67215651,4415.5,4415.4,21.6182]
[1755397780884,0.5893,4415.0,4414.9,1.4833]
[1755397781085,1.2269,4415.0,4414.9,22.0373]
[1755397782086,1.2269,4415.0,4414.9,1.4833]
[1755397782285,1.4686,4415.0,4414.9,22.0373]
[1755397782689,1.2269,4415.0,4414.9,20.554]
[1755397782890,1.4686,4415.0,4414.9,20.554]
[1755397783184,1.67333393,4415.0,4414.9,20.8082]
[1755397783387,1.67333393,4415.0,4414.9,22.0373]
[1755397784388,1.67333393,4415.0,4414.9,1.4833]
[1755397784584,1.67333393,4415.0,4414.9,22.0373]
[1755397785784,0.20473393,4415.0,4414.9,22.0373]
[1755397785984,1.2269,4415.5,4415.4,1.4833]
[1755397786185,1.4316377,4415.5,4415.4,22.0373]
[1755397787789,1.6969377,4415.5,4415.4,1.4833]
[1755397788189,1.4922,4415.5,4415.4,22.0373]
[1755397788488,1.69691282,4415.5,4415.4,22.0373]
[1755397788689,1.69690607,4415.5,4415.4,22.0373]
[1755397789188,1.30770607,4415.5,4414.9,0.251]
[1755397789394,0.5985,4415.1,4415.0,21.1639]
[1755397789693,1.5198,4415.1,4415.0,22.0679]
[1755397789894,1.2545,4415.1,4415.0,22.0679]
[1755397790394,0.8167,4415.1,4415.0,22.0679]
[1755397790998,0.4249,4415.1,4415.0,22.0679]
[1755397791289,0.8167,4415.1,4415.0,22.0679]
[1755397791592,1.0809,4415.1,4415.0,22.0679]
[1755397792795,1.0809,4415.1,4415.0,1.5139]
[1755397792995,1.0809,4415.1,4415.0,22.0679]
[1755397793494,1.0809,4415.1,4415.0,1.5139]
[1755397793694,1.0809,4415.1,4415.0,22.0669]
[1755397795297,1.2545,4415.1,4415.0,22.0669]
[1755397795498,1.5198,4415.1,4415.0,22.0669]
[1755397796402,1.5198,4415.1,4415.0,1.5139]
[1755397796598,3.472,4416.1,4415.0,22.0669]
[1755397796792,1.72448518,4416.0,4415.9,1.5139]
[1755397796996,1.72448518,4416.0,4415.9,22.0669]
[1755397800406,1.5198,4416.0,4415.9,22.0669]
[1755397800903,1.5198,4416.0,4415.9,21.4139]
[1755397801505,1.5198,4416.0,4415.9,22.0669]
[1755397808721,1.72175697,4416.0,4415.9,22.0669]
[1755397812413,1.72175697,4416.0,4415.3,0.2572]
[1755397812620,1.5198,4415.4,4415.3,1.1181]
[1755397812819,1.5198,4415.4,4415.3,22.0619]
[1755397815612,1.5198,4415.4,4415.3,1.5139]
[1755397815920,1.5198,4415.4,4415.3,22.0619]
[1755397818623,1.2545,4415.4,4415.3,22.0619]
[1755397819618,1.2016,4415.7,4415.6,0.5774]
[1755397819823,1.39951135,4415.7,4415.6,21.9978]
[1755397820423,0.19791135,4415.7,4415.6,21.9978]
[1755397821925,0.19791135,4415.7,4415.6,21.96502242]
[1755397822222,3.2078,4416.8,4416.6,1.4508]
[1755397822522,1.06626099,4416.7,4416.6,1.4508]
[1755397822720,0.81536099,4416.7,4416.6,21.9968]
[1755397822922,1.66066099,4416.7,4416.6,21.9968]
[1755397823225,1.39946099,4416.7,4416.6,21.9968]
[1755397823426,0.19786099,4416.7,4416.6,21.9968]
[1755397825526,0.55956099,4416.7,4416.6,21.9968]
[1755397825828,1.39946099,4416.7,4416.6,21.9968]
[1755397829323,1.66066099,4416.7,4416.6,21.9968]
[1755397832133,1.4628,4416.7,4416.6,21.9968]
[1755397832330,1.66037362,4416.7,4416.6,21.9968]
[1755397833327,1.4628,4416.7,4416.6,21.9968]
[1755397834528,0.589,4416.4,4416.3,1.0349]
[1755397834831,0.589,4416.4,4415.3,32.61]
[1755397834832,1.4628,4416.0,4415.9,0.6609]
[1755397835030,1.4628,4416.0,4415.9,20.9614]
[1755397835730,1.4628,4416.0,4415.9,0.4194]
[1755397835934,1.4628,4416.0,4415.9,20.9614]
[1755397836126,1.4628,4416.0,4415.9,0.4194]
[1755397836326,1.4628,4416.0,4415.9,20.9614]
[1755397836529,1.4628,4416.0,4415.6,0.4994]
[1755397836530,0.8738,4415.9,4415.6,0.4994]
[1755397836726,1.4628,4415.7,4415.6,0.4994]
[1755397836926,1.4628,4415.7,4415.6,21.9928]
[1755397839335,1.4628,4415.7,4415.6,1.4508]
[1755397839538,1.4628,4415.7,4415.6,21.9928]
[1755397840234,1.6604157,4415.7,4415.6,21.9928]
[1755397840940,1.6604157,4415.7,4415.3,0.2579]
[1755397841133,1.4628,4415.5,4415.4,0.4194]
[1755397841632,1.4628,4415.5,4415.4,21.5769]
[1755397841932,1.4628,4415.5,4415.4,1.4508]
[1755397842437,3.2078,4416.7,4415.4,24.4154]
[1755397842636,0.61990384,4416.6,4416.0,0.2415]
[1755397842836,0.9507,4416.6,4416.5,0.9514]
[1755397843031,1.65985244,4416.6,4416.5,21.1734]
[1755397843331,0.4223,4416.1,4416.0,20.596]
[1755397843538,0.4223,4416.1,4415.4,3.2078]
[1755397843539,0.589,4415.5,4415.4,0.1615]
[1755397843739,1.29815244,4415.5,4415.4,0.4194]
[1755397844136,1.65985244,4415.5,4415.4,0.6609]
[1755397845942,1.65985244,4415.5,4415.4,1.2053]
[1755397846336,1.65985244,4415.5,4415.4,0.5898]
[1755397846539,1.65985244,4415.5,4415.4,1.4508]
[1755397847836,1.65985244,4415.5,4415.4,0.8353]
[1755397851542,1.65985244,4415.5,4415.4,1.0965]
[1755397852441,1.65985244,4415.5,4415.4,1.4733]
[1755397858148,1.65985244,4415.5,4415.4,0.8353]
[1755397858348,1.65985244,4415.5,4415.4,0.2579]
[1755397858946,1.4628,4415.5,4415.4,0.2579]
[1755397859147,1.65983863,4415.5,4415.4,0.2579]
[1755397859447,1.4628,4415.5,4415.4,0.2579]
[1755397860246,0.266,4415.1,4414.3,0.2418]
[1755397860442,0.4236,4414.4,4414.2,17.585]
[1755397860747,1.4908,4414.3,4414.2,18.6225]
[1755397860948,1.4908,4414.3,4414.2,19.0549]
[1755397862247,1.4908,4414.3,4414.2,1.4699]
[1755397862448,0.5848,4414.3,4413.1,0.8798]
[1755397862646,0.266,4413.9,4413.8,0.1629]
[1755397862852,0.18111271,4415.5,4413.8,0.5901]
[1755397862853,0.266,4414.3,4413.8,0.5901]
[1755397863058,0.6504,4414.3,4414.2,0.5901]
[1755397863350,3.2078,4414.8,4414.2,0.5901]
[1755397863547,0.6504,4414.7,4414.3,0.5901]
[1755397863746,0.8508,4414.7,4414.6,0.5901]
[1755397863953,1.1064,4414.7,4414.6,1.4699]
[1755397864352,0.5848,4414.2,4414.1,0.8319]
[1755397864548,1.4908,4414.2,4414.1,1.4699]
[1755397865244,0.6504,4414.7,4414.6,0.1629]
[1755397865450,1.4908,4414.7,4414.6,1.4699]
[1755397866348,1.68822402,4414.7,4414.6,1.4699]
[1755397866551,1.68822402,4414.7,4414.6,0.8319]
[1755397866853,0.78222402,4414.7,4414.4,0.2418]
[1755397867060,1.2352,4414.5,4414.4,1.2281]
[1755397867255,1.68822402,4414.5,4414.4,1.2281]
[1755397867648,1.68822402,4414.5,4414.4,1.4699]
[1755397868356,1.68822402,4414.5,4413.8,0.2418]
[1755397868554,1.68822402,4414.4,4414.3,1.4699]
[1755397876065,0.19742402,4414.4,4414.3,1.4699]
[1755397876259,3.2078,4414.8,4414.3,1.4699]
[1755397876454,0.20050091,4414.7,4414.6,1.4699]
[1755397876654,3.8582,4415.5,4414.6,0.5901]
[1755397876849,0.78523953,4415.4,4415.3,0.5901]
[1755397877057,1.43563953,4415.4,4415.3,1.4699]
[1755397877250,1.70083953,4415.4,4415.3,1.4699]
[1755397879257,0.20043953,4415.4,4415.3,1.4699]
[1755397879658,3.2078,4415.5,4415.3,0.5901]
[1755397879850,1.2517,4416.1,4416.0,0.5897]
[1755397880057,1.2517,4416.1,4416.0,1.4752]
[1755397880058,1.71731782,4416.1,4416.0,1.4752]
[1755397880363,1.45211782,4416.1,4416.0,1.4752]
[1755397880656,0.46291782,4416.1,4416.0,1.4752]
[1755397881762,1.45661782,4416.1,4416.0,0.1671]
[1755397882071,1.45661782,4416.1,4416.0,1.4752]
[1755397882262,1.71731782,4416.1,4416.0,1.4752]
[1755397882764,1.45211782,4416.1,4416.0,1.4752]
[1755397883358,1.71731782,4416.1,4416.0,1.4752]
[1755397885767,3.2078,4416.2,4416.0,1.4752]
[1755397885958,0.2652,4416.5,4416.0,0.5897]
[1755397886156,1.2517,4416.3,4416.2,0.5897]
[1755397886363,1.4519217,4416.3,4416.2,1.4752]
[1755397886759,0.2002217,4416.3,4416.2,1.4752]
[1755397886960,0.20016655,4416.3,4416.2,0.5897]
[1755397887759,0.6526,4416.6,4416.3,0.8855]
[1755397887957,1.2517,4416.6,4416.5,1.4752]
[1755397888160,1.45180802,4416.6,4416.5,1.4752]
[1755397890764,0.3919,4417.7,4416.5,0.5897]
[1755397890973,1.71684833,4417.6,4417.5,0.8461]
[1755397891170,1.71684833,4417.6,4417.5,1.4752]
[1755397891867,1.45164833,4417.6,4417.5,1.4752]
[1755397892071,1.19094833,4417.6,4417.5,1.4752]
[1755397892371,3.2078,4417.8,4417.7,1.4752]
[1755397899576,0.3919,4418.0,4417.7,0.5897]
[1755397899875,1.2517,4418.0,4417.9,1.4752]
[1755397900070,0.1,4418.2,4417.9,0.5897]
[1755397900377,1.3517,4418.2,4418.1,1.4752]
[1755397901071,1.6169,4418.2,4418.1,1.4752]
[1755397904879,1.3517,4418.2,4418.1,1.4752]
[1755397905773,0.1,4418.2,4418.1,1.4752]
[1755397906178,0.1,4418.2,4417.6,0.2564]
[1755397906375,1.5169,4418.1,4418.0,0.5897]
[1755397906582,1.5169,4418.1,4418.0,1.4752]
[1755397908084,0.1,4418.2,4418.1,1.482]
[1755397911680,0.10394019,4418.2,4418.1,1.482]
[1755397912883,14.232,4420.4,4418.1,1.482]
[1755397912884,3.8071,4419.4,4419.3,0.5887]
[1755397913085,4.4405,4419.4,4419.3,1.482]
[1755397913286,3.8071,4419.4,4419.3,1.482]
[1755397913478,0.2564,4419.4,4419.3,1.482]
[1755397913680,0.4942,4419.7,4419.3,0.5887]
[1755397913876,1.2327,4419.6,4419.5,0.5887]
[1755397914083,1.2327,4419.6,4419.5,1.482]
[1755397914887,0.9798,4419.6,4419.5,1.482]
[1755397915088,1.2327,4419.6,4419.5,1.482]
[1755397915292,3.6337,4420.0,4419.9,0.5887]
[1755397915590,4.62866577,4420.0,4419.9,1.482]
[1755397915885,4.88156577,4420.0,4419.9,1.482]
[1755397916081,5.48824217,4420.0,4419.9,1.482]
[1755397916288,5.48825267,4420.0,4419.9,0.8457]
[1755397917990,5.24696138,4420.0,4419.9,1.482]
[1755397918190,5.48826138,4420.0,4419.9,1.482]
[1755397918490,5.48826138,4420.0,4419.9,1.0927]
[1755397919994,4.61356138,4420.0,4419.4,0.247]
[1755397920195,1.0477,4419.7,4419.6,1.0927]
[1755397920396,2.0806764,4419.7,4419.6,1.0927]
[1755397920596,2.0806764,4419.7,4419.6,1.482]
[1755397921093,1.8393764,4419.7,4418.9,3.4548]
[1755397921389,0.5993,4419.0,4418.6,0.6363]
[1755397921595,1.474,4418.7,4418.6,1.482]
[1755397922390,2.08146657,4418.7,4418.6,0.4221]
[1755397922698,0.4259,4418.0,4417.7,3.2078]
[1755397922889,0.4259,4418.0,4417.9,33.4893]
[1755397922890,1.2327,4418.0,4417.9,33.4893]
[1755397923287,0.9798,4418.5,4418.4,1.0599]
[1755397923495,2.04042396,4418.5,4418.4,1.482]
[1755397923896,2.28172396,4418.5,4418.4,1.482]
[1755397924498,0.4298,4418.1,4418.0,0.8457]
[1755397924693,1.474,4418.1,4418.0,1.482]
[1755397925392,1.2327,4418.8,4418.7,1.0927]
[1755397925597,1.06431307,4418.8,4418.7,1.482]
[1755397926191,0.80791307,4418.8,4418.7,1.482]
[1755397926393,0.20018188,4418.8,4418.7,1.482]
[1755397926593,1.2327,4419.3,4419.2,0.5887]
[1755397926794,0.60767193,4419.3,4419.2,1.482]
[1755397926988,0.8747,4420.0,4419.2,1.482]
[1755397927193,1.2327,4419.3,4419.2,0.8457]
[1755397927400,1.2211,4418.9,4418.8,0.8457]
[1755397927599,1.474,4418.9,4418.8,1.482]
[1755397928094,1.474,4418.9,4418.5,3.4648]
[1755397928299,0.60769339,4418.8,4418.7,1.482]
[1755397928491,2.08169339,4418.8,4418.7,1.482]